Cogmind - Beta 13 @@@ ROGUE MODE // 2024.05.07 @ 08:15:19 Player: Wyvric Result: Destroyed by H-88 Terminator with KE Penetrator Performance ------------- Evolutions (8) 4000 Regions Visited (31) 6200 Robots Destroyed (300) 1500 Value Destroyed (14872) 14872 Prototype IDs (93) 1860 Alien Tech Used (2) 400 Bonus (7771) 7771 TOTAL SCORE: 36603 Bonus ------- High Alert Combat Kills 2180 Follower Combat Kills 2423 Network Hubs Disabled 400 Met Imprinter 300 Destroyed Z-Imprinter 1000 Met Zhirov 300 Met Warlord at Base 500 MAIN.C Attacked Warlord 500 Built Enhanced Grunts 300 Met R17 at Cetus 500 Friendly Fire -632 Cogmind --------- Core Integrity 0/1450 Matter 253/300 Energy 83/100 System Corruption 0% Temperature Cool (0) Movement Flying (184) Ox1 Location -2/Research Parts ------- > --- POWER (2) -------- (None) > --- PROPULSION (7) --- Flying ITA-Biometal Exoskeleton > --- UTILITY (9) ------ Scrap Engine Experimental Coolant Injector Huge Storage Unit Advanced Signal Interpreter Experimental Targeting Computer Experimental Core Analyzer Centrium Light Armor Plating Centrium Light Armor Plating > --- WEAPON (5) ------- Laser Nova Construct/G > --- INVENTORY (25) --- Myomer Leg Enhanced Biometal Leg Combat Antigrav System Impulse Thruster Array Experimental Energy Well (600) Zionite Biocell (600) Experimental Matter Compressor (500) Advanced Sensor Array Precision Matter Filter Quantum Capacitor Advanced Transmission Jammer Centrium Light Armor Plating SHELL Armor Graphene Brace Advanced Hacking Suite Improved System Shield Advanced Component Analysis Suite Advanced Corruption Screen Long-range Tractor Beam Peak State ------------ > --- POWER ------------ Multi-Antimatter Reactor > --- PROPULSION ------- Enhanced Biometal Leg Flying ITA-Biometal Exoskeleton > --- UTILITY ---------- Armored Scrap Engine Huge Storage Unit Advanced Signal Interpreter Experimental Targeting Computer Advanced Kinecellerator SHELL Armor > --- WEAPON ----------- Heavy Neutron Cannon Helical Railgun Helical Railgun Compact Linear Accelerator Fusion Bomb Launcher > --- INVENTORY -------- Enhanced Biometal Leg Combat Antigrav System Experimental Coolant Injector Experimental Energy Well Zionite Biocell Experimental Matter Compressor Advanced Sensor Array Experimental Core Analyzer Precision Matter Filter Quantum Capacitor Advanced Transmission Jammer Graphene Brace Advanced Hacking Suite Improved System Shield Advanced Component Analysis Suite Advanced Corruption Screen Long-range Tractor Beam Transdimensional Reconstructor Vortex Driver Vortex Driver [Rating: 206] Favorites ----------- Power Constructs Engine Ion Engine Power Core Fission Core Reactor Constructs Propulsion Constructs Treads Armored Treads Leg Advanced VSS Leg Wheel Wheel Hover Unit Improved Linear Gravjet Flight Unit Constructs Utility Huge Storage Unit Device Armored Scrap Engine Storage Huge Storage Unit Processor Advanced Signal Interpreter Hackware Advanced System Shield Protection Centrium Medium Armor Plating Weapon Constructs Energy Gun Spread Laser Energy Cannon Constructs Ballistic Gun Constructs Ballistic Cannon Constructs Launcher Fusion Bomb Launcher Special Weapon Molecular Deconstructor Impact Weapon Mace Slashing Weapon Nanosword Build | -11 -10 -10 -9 -9 -9 -7 -7 -7 -7 -7 -6 -6 -6 -6 -6 -6 -5 -5 -5 -5 -4 -4 -4 -4 -4 -4 -4 -3 -3 -3 -2 ------- Run | Yrd Mat Min Mat Sto Rec Fac Low Low Zio Dee Pro Fac Ext Cet Arc Hub Fac Upp Upp War Pro Fac Was Fac Upp Upp Zhi Pro Res Tes Res Slots Evolved 16 | . . . 2 . . 4 . . . . . 2 . . . . 2 . . . . 2 . . . . . . 2 . 2 Power 1 | . . . . . . . . . . . . . . . . . . . . . . . . . . . . . 1 . . Propulsion 5 | . . . . . . 2 . . . . . 2 . . . . . . . . . . . . . . . . . . 1 Utility 7 | . . . 2 . . 2 . . . . . . . . . . 1 . . . . . . . . . . . 1 . 1 Weapon 3 | . . . . . . . . . . . . . . . . . 1 . . . . 2 . . . . . . . . . Parts Attached 599 | 7 2 8 14 11 6 19 14 2 1 25 15 15 35 10 6 8 53 17 12 26 14 32 9 15 4 2 7 13 12 103 82 Power 12 | 1 . 1 . 2 . . . . . . . . 1 . . 1 . . . 1 . 1 1 . . . 1 . 1 1 . Engine 4 | 1 . 1 . 2 . . . . . . . . . . . . . . . . . . . . . . . . . . . Core 1 | . . . . . . . . . . . . . 1 . . . . . . . . . . . . . . . . . . Reactor 7 | . . . . . . . . . . . . . . . . 1 . . . 1 . 1 1 . . . 1 . 1 1 . Propulsion 103 | 2 2 4 5 2 . 9 1 . . 8 . 2 5 4 . . 7 4 5 6 . 5 1 4 2 . . 2 . 4 19 Treads 19 | . . 2 2 . . 3 1 . . 3 . . . 3 . . 1 2 . . . . 1 . . . . . . . 1 Leg 19 | 2 . . . . . . . . . 1 . . 5 1 . . . . . 1 . 4 . . . . . . . . 5 Wheel 22 | . 2 2 3 2 . 6 . . . 2 . . . . . . 1 . . . . . . . . . . . . . 4 Hover 34 | . . . . . . . . . . 2 . 2 . . . . 2 . 3 5 . . . 4 2 . . 2 . 4 8 Flight 9 | . . . . . . . . . . . . . . . . . 3 2 2 . . 1 . . . . . . . . 1 Utility 332 | 1 . 1 5 3 6 10 13 2 1 17 15 8 15 6 6 6 32 10 2 12 8 13 3 10 1 2 6 10 9 65 34 Device 250 | . . . 3 1 5 7 12 2 1 12 13 3 10 4 6 1 20 7 2 10 7 12 1 9 1 1 6 9 6 55 24 Storage 16 | 1 . 1 . . 1 1 . . . 1 . 2 . 1 . . 1 2 . 1 . . 1 . . . . 1 1 . 1 Processor 14 | . . . 1 . . 1 . . . . 1 2 . . . . 2 . . . . . 1 . . 1 . . . 1 4 Hackware 4 | . . . . . . . . . . . . . . . . . 3 . . . . . . . . . . . . 1 . Protection 48 | . . . 1 2 . 1 1 . . 4 1 1 5 1 . 5 6 1 . 1 1 1 . 1 . . . . 2 8 5 Artifact . | . . . . . . . . . . . . . . . . . . . . . . . . . . . . . . . . Weapon 152 | 3 . 2 4 4 . . . . . . . 5 14 . . 1 14 3 5 7 6 13 4 1 1 . . 1 2 33 29 Energy Gun 25 | 1 . 1 2 . . . . . . . . . 6 . . . 2 . . 2 1 2 . . . . . . . 1 7 Energy Cannon 44 | . . . . . . . . . . . . . . . . 1 4 . 1 3 3 8 1 1 1 . . . 1 10 10 Ballistic Gun 23 | 2 . 1 1 1 . . . . . . . . . . . . 7 2 2 . . . 2 . . . . . . . 5 Ballistic Cannon 12 | . . . . . . . . . . . . 3 1 . . . 1 . 2 . . 2 1 . . . . . . . 2 Launcher 19 | . . . . 2 . . . . . . . 1 1 . . . . 1 . 1 2 1 . . . . . 1 1 4 4 Special Weapon 1 | . . . . . . . . . . . . . . . . . . . . 1 . . . . . . . . . . . Impact Weapon 2 | . . . 1 1 . . . . . . . . . . . . . . . . . . . . . . . . . . . Slashing Weapon 26 | . . . . . . . . . . . . 1 6 . . . . . . . . . . . . . . . . 18 1 Piercing Weapon . | . . . . . . . . . . . . . . . . . . . . . . . . . . . . . . . . Special Melee Weapon . | . . . . . . . . . . . . . . . . . . . . . . . . . . . . . . . . Unidentified Prototypes 45 | . . . . 1 . . . . . 8 . . 2 4 . 2 1 . . 10 . 1 1 1 . . 2 . 1 4 7 Parts Lost 53 | . 3 1 4 2 . 1 . . . 1 4 . 7 . 1 2 1 . . . . 1 . 2 . . . . 1 1 21 Power 11 | . 1 . 1 1 . . . . . . 1 . 1 . . 1 . . . . . . . . . . . . . . 5 Propulsion 8 | . 1 . 1 . . 1 . . . . . . 1 . . 1 . . . . . 1 . . . . . . . 1 1 Utility 19 | . . . 1 1 . . . . . 1 3 . 4 . 1 . 1 . . . . . . 2 . . . . . . 5 Weapon 15 | . 1 1 1 . . . . . . . . . 1 . . . . . . . . . . . . . . . 1 . 10 Highest Loss Streak 8 | . 3 1 4 2 . 1 . . . 1 2 . 6 . 1 2 1 . . . . 1 . 1 . . . . 1 1 8 To Critical Strikes . | . . . . . . . . . . . . . . . . . . . . . . . . . . . . . . . . Average Slot Usage (%) 69 | . 81 95 85 96 68 75 68 69 69 65 60 67 66 60 60 57 71 79 75 77 75 67 69 71 74 78 76 77 75 71 62 Engine 2 | . 12 12 8 9 10 7 3 . . . . . . . . . . . . . . . . . . . . . . . . Core 2 | . . . . . . . 3 7 7 7 . . 5 1 . . . . . . . . . 1 5 5 3 . . . . Reactor 2 | . . . . . . . . . . . 6 6 . 4 6 5 5 4 5 5 5 5 4 3 . . 1 5 4 3 3 Treads 4 | . . 13 1 . . . 9 15 15 9 . . 2 5 6 5 3 1 6 . . . 8 8 . . . . . . . Leg 2 | . 16 . . . 1 . . . . 2 3 . 13 7 6 6 3 . . . . 10 1 . . . . . . . 1 Wheel 3 | . 10 14 19 22 10 22 5 . . . . . . . . . . . . . . . . . . . . . . . 1 Hover 3 | . . . . . . . . . . . 3 20 2 . . . . . 4 12 13 1 . 2 12 15 15 14 14 12 5 Flight 1 | . . . . . . . . . . . . . . . . . 4 18 6 7 3 3 . . . . . . . . 1 Device 18 | . . . 16 17 20 22 17 18 23 22 21 14 20 25 26 18 13 18 17 17 19 16 13 14 15 14 9 14 15 14 13 Storage 7 | . 14 25 11 11 11 7 7 7 7 7 7 6 6 6 6 6 5 8 5 5 5 5 5 5 5 5 5 5 4 4 4 Processor 5 | . . . . . . 2 7 7 7 7 7 6 3 . . . 7 5 5 5 5 5 8 10 10 10 14 10 9 7 7 Protection 2 | . . . 6 14 . 3 5 3 . . 1 4 1 . . 6 1 . 5 4 2 3 1 . . . . . 2 1 4 Energy Gun 1 | . . 14 13 4 1 . . . . . . . 1 . . . 6 5 2 . . 2 . . . . . . . . 1 Energy Cannon 4 | . . . . . 5 4 . 6 7 6 2 . 1 5 . . 2 3 1 4 6 7 9 10 12 15 15 13 13 . 7 Ballistic Gun 2 | . 26 13 6 4 1 . . . . . . 1 . . . . 4 6 8 7 . 1 5 5 5 5 5 5 1 . 1 Ballistic Cannon 2 | . . . . . 2 2 7 . . . 4 2 2 . 5 4 . . 1 1 5 3 6 8 5 5 5 5 4 . 1 Slashing Weapon 1 | . . . . . . . . . . . . 2 2 . . . . . . . . . . . . . . . . 21 2 Naked Turns . | . . . . . . . . . . . . . . . . . . . . . . . . . . . . . . . . Heaviest Build 214 | 14 14 92 96 95 98 106 104 104 103 109 106 119 116 110 112 134 124 124 124 142 139 154 136 141 139 138 151 153 184 182 214 Greatest Support 242 | 20 32 40 43 26 20 50 50 30 30 71 55 95 123 107 107 107 124 129 142 140 140 177 200 200 185 146 156 156 224 242 212 Greatest Overweight (x) 15 | . . 3 5 4 15 3 4 3 3 3 1 1 1 1 1 1 1 1 1 1 1 1 1 12 . . 1 . . 1 10 Average Overweight (x) 1 | . . 2 2 3 5 2 2 3 3 1 1 . . . . . . . . . . . . . . . . . . . 2 Largest Inventory Capacity 25 | 8 8 25 25 25 25 25 25 25 25 25 25 25 25 25 25 25 25 25 25 25 25 25 25 25 25 25 25 25 25 25 25 Average Capacity 24 | 6 8 22 25 25 24 24 25 25 25 25 25 21 25 25 25 25 25 25 25 25 25 25 25 25 25 25 25 25 25 25 25 Most Carried 25 | 6 7 6 25 25 25 25 25 25 25 25 25 25 25 25 25 25 25 25 25 25 25 25 25 25 25 25 25 25 25 25 25 Average Carried 23 | 3 6 4 16 24 19 22 24 24 25 22 24 20 23 24 24 24 23 24 24 24 24 24 24 24 24 24 24 24 24 24 24 Final Capacity 25 | 8 8 25 25 25 20 25 25 25 25 25 25 25 25 25 25 25 25 25 25 25 25 25 25 25 25 25 25 25 25 25 25 Final Carried 25 | 6 7 5 25 25 20 25 24 25 25 25 24 25 25 25 25 25 25 25 25 25 25 25 25 25 25 25 25 25 24 25 23 Scrap Engine Consumption 446 | . . . . . 50 16 9 9 4 32 12 9 32 25 3 4 13 6 7 24 . 28 17 10 6 2 2 5 17 11 93 Constructs Created 21 | . . . . . 3 . . . . . 1 1 2 . . . 2 2 . . . 3 2 . . . . . . 1 4 Constructs Modified 152 | . . . . . 18 6 6 3 . 14 2 1 17 4 1 1 6 3 3 4 1 5 6 5 7 . . . . 4 35 Class Distribution -------------------- 53% | Construct 12% | Commander-Construct 9% | Mutant 7% | Skirmisher 5% | Tank Dominant Class ---------------- Mutant | -10/Materials Mutant | -10/Mines Mutant | -9/Materials Commander-Mutant | -9/Storage Construct | -9/Recycling Construct | -7/Factory Commander-Construct | -7/Lower Caves Construct | -7/Lower Caves Construct | -7/Zion Construct | -7/Deep Caves Construct | -6/Proximity Caves Construct | -6/Factory Commander-Construct | -6/Extension Commander-Construct | -6/Cetus Commander-Construct | -6/Archives Commander-Construct | -6/Hub_04(d) Scavenger-Skirmisher | -5/Factory Sprinter | -5/Upper Caves Tank | -5/Upper Caves Commander-Mutant | -5/Warlord Skirmisher | -4/Proximity Caves Tank | -4/Factory Construct | -4/Waste Construct | -4/Factory Construct | -4/Upper Caves Construct | -4/Upper Caves Construct | -4/Zhirov Construct | -3/Proximity Caves Tank | -3/Research Mutant | -3/Testing Skirmisher | -2/Research Resources | -11 -10 -10 -9 -9 -9 -7 -7 -7 -7 -7 -6 -6 -6 -6 -6 -6 -5 -5 -5 -5 -4 -4 -4 -4 -4 -4 -4 -3 -3 -3 -2 ----------- Run | Yrd Mat Min Mat Sto Rec Fac Low Low Zio Dee Pro Fac Ext Cet Arc Hub Fac Upp Upp War Pro Fac Was Fac Upp Upp Zhi Pro Res Tes Res Matter Collected 10629 | 212 13 88 235 118 143 170 165 35 10 411 165 67 698 100 55 73 761 294 149 751 255 168 787 253 533 77 114 191 180 1383 1975 Remotely 1696 | . . . . . . . . . . . . . . . . . 344 . . 731 . . . . . . . . . 101 520 Salvage Created 15719 | . 43 88 314 424 1480 234 249 157 . 318 560 52 990 264 261 56 799 411 60 . 330 1939 1367 685 133 117 145 302 221 2032 1688 Parts 693 | . 2 8 18 23 42 16 12 11 . 21 31 5 35 15 16 5 38 20 6 . 20 106 6 15 7 4 . 8 8 126 69 Haulers Intercepted 2 | . . . . 2 . . . . . . . . . . . . . . . . . . . . . . . . . . . Recyclers Shooed 14 | . . . 2 2 6 . . . . . . . . . . . 3 . . . . 1 . . . . . . . . . Parts Field Recycled . | . . . . . . . . . . . . . . . . . . . . . . . . . . . . . . . . Retrieved Matter . | . . . . . . . . . . . . . . . . . . . . . . . . . . . . . . . . Parts Self-Destructed 113 | . . . . . . . 25 15 . . 21 . . . . . . 9 5 . 15 . . . 5 8 . 10 . . . Prevented 35 | . . . . . . . 3 5 . . . . . . . . . 11 . . 12 . . . 2 . . 2 . . . Kills | -11 -10 -10 -9 -9 -9 -7 -7 -7 -7 -7 -6 -6 -6 -6 -6 -6 -5 -5 -5 -5 -4 -4 -4 -4 -4 -4 -4 -3 -3 -3 -2 ------- Run | Yrd Mat Min Mat Sto Rec Fac Low Low Zio Dee Pro Fac Ext Cet Arc Hub Fac Upp Upp War Pro Fac Was Fac Upp Upp Zhi Pro Res Tes Res Combat Hostiles Destroyed 229 | . 2 3 7 7 6 4 5 3 . 6 11 2 12 4 1 2 12 6 1 . 7 25 6 14 3 5 . 6 3 29 37 Melee 27 | . . . . 1 . . . . . . . . 2 . . . . . . . . . . . . . . . . 24 . Guns 52 | . 2 3 7 6 . . . . . . . . 4 . . . 11 1 1 . . 1 1 2 . . . . . . 13 Cannons 92 | . . . . . 4 4 5 3 . 6 11 1 6 4 1 2 1 . . . 2 4 . 7 3 5 . 4 1 1 17 AOE 36 | . . . . . . . . . . . . 1 . . . . . 3 . . 5 16 . . . . . . . 4 7 Classes Destroyed 26 | . 2 1 3 2 2 1 1 . . 3 3 . 1 . . . . . . . . 2 1 . . . . . . 1 3 Worker 18 | . . 2 . 4 . . . . . . . . . . . . . . . . . 5 . 2 . . . . 1 4 . Builder 15 | . . . . . 3 . . . . . . . . . . . . . . . . 8 . . . . . . 1 3 . Tunneler 2 | . . . . . . . . . . . . . . . . . . . . . . 1 . . . . . . 1 . . Hauler 2 | . . . . 2 . . . . . . . . . . . . . . . . . . . . . . . . . . . Recycler 15 | . . . . 1 10 . . . . . . . 2 . . . 1 . . . . . . . . . . . . 1 . Operator 9 | . . . . . . . . . . . . . 1 . 5 . . . . . . 1 . . . . . . 1 1 . Drone 3 | . . . . . . . . . . . 2 . . . . . . . . . . . . . . . . 1 . . . Watcher 10 | . . . 2 . . 1 . . . . . 1 . . . . . . . . . 2 . 1 . . . . 1 2 . Swarmer 34 | . 1 3 . 3 . 1 . . . . . 2 . . . 2 4 . . . 4 . . . . 4 . . . 7 3 Grunt 73 | . 1 . 3 3 1 . 3 2 . . 2 . 4 . . . 6 5 . . 2 11 . 11 1 . . 5 1 2 10 Brawler 1 | . . . . . . . . . . . 1 . . . . . . . . . . . . . . . . . . . . Duelist 6 | . . . 1 . . . . 1 . . 2 . . . . . . . . . . 1 . 1 . . . . . . . Sentry 18 | . . . 3 1 3 1 . . . . 1 . 5 . 1 . . . . . 1 2 . . . . . . . . . Demolisher 3 | . . . . . . . . . . . . . . . . . . . . . . . . . . . . . . . 3 Specialist 3 | . . . . . . . . . . . . . . . . . . . . . . . . . . . . . . 3 . Hunter 19 | . . . . . 2 1 1 . . . 2 . 1 . . . . 1 . . . 4 . 1 . . . . 2 . 4 Programmer 35 | . . . . . . 1 . . . . . . 1 . . . 2 . 1 . . 6 . . 2 1 . . . 17 4 Heavy 2 | . . . . . . . . . . . . . . . . . . . . . . 1 . 1 . . . . . . . Behemoth 1 | . . . . . . . . . . . 1 . . . . . . . . . . . . . . . . . . . . Compactor 6 | . . . . . . . . . . . . . . . . . . . . . . . 6 . . . . . . . . Cetus Guard 4 | . . . . . . . . . . . . . . 4 . . . . . . . . . . . . . . . . . Striker 7 | . . . . . . . . . . . . . . . . . . . . . . . . . . . . . . . 7 Executioner 6 | . . . . . . . . . . . . . . . . . . . . . . . . . . . . . . . 6 Z-Light 4 | . . . . . . . . . . 4 . . . . . . . . . . . . . . . . . . . . . Assembled 2 | . . . . . . . . . . 2 . . . . . . . . . . . . . . . . . . . . . Thug 1 | . . . . . . . . . . . . . 1 . . . . . . . . . . . . . . . . . . Wizard 1 | . . . . . . . . . . . . . . . . . . . . . . . . . . . . . . . 1 Fireman 1 | . . . . . . . . . . 1 . . . . . . . . . . . . . . . . . . . . . Mutant 1 | . . . . . . . 1 . . . . . . . . . . . . . . . . . . . . . . . . Best Kill Streak 10 | . 2 3 3 3 2 3 2 3 . 4 2 2 2 3 4 2 5 5 1 . 3 9 2 10 2 4 . 6 4 7 9 Combat Bots Only 9 | . 2 3 2 3 1 2 2 3 . 4 2 2 1 3 1 2 5 5 1 . 3 6 2 9 2 4 . 6 2 7 9 Max Kills in Single Turn 4 | . 1 1 1 1 1 1 1 1 . 1 1 1 1 1 1 1 2 3 1 . 2 4 1 2 1 1 . 1 2 1 2 Gunslinging 1 | . . . . . . . . . . . . . . . . . 1 . . . . . . . . . . . . . . Exploded 3 | . . . . . . . . . . . . 1 . . . . . 3 . . 2 2 . . . . . . . 1 2 Melee 1 | . . . . 1 . . . . . . . . 1 . . . . . . . . . . . . . . . . 1 . Uniques/NPCs Destroyed 1 | . . . . . . . . . . 1 . . . . . . . . . . . . . . . . . . . . . Z-Imprinter (-7/Deep Caves) Combat | -11 -10 -10 -9 -9 -9 -7 -7 -7 -7 -7 -6 -6 -6 -6 -6 -6 -5 -5 -5 -5 -4 -4 -4 -4 -4 -4 -4 -3 -3 -3 -2 -------- Run | Yrd Mat Min Mat Sto Rec Fac Low Low Zio Dee Pro Fac Ext Cet Arc Hub Fac Upp Upp War Pro Fac Was Fac Upp Upp Zhi Pro Res Tes Res Hostile Shots Fired 2612 | . 69 15 34 43 26 74 19 7 . 51 109 15 305 26 12 211 95 32 6 5 23 208 . 140 14 15 . 24 165 312 557 Missed 807 | . 22 2 11 10 6 20 7 2 . 15 36 5 76 11 3 75 14 7 1 2 12 92 . 31 3 2 . 4 89 107 142 Damage Taken 34615 | . 459 109 409 486 292 632 218 101 . 1074 1221 68 3129 425 247 3248 1287 363 107 85 184 2807 . 2233 222 213 . 245 782 2416 11553 Core 3385 | . 120 17 66 108 56 78 . . . 67 88 . 341 66 . 175 77 11 . . 13 142 . 121 43 45 . 51 37 207 1456 Absorbed by Shields 2876 | . . . . . . 4 . . . . . 31 460 68 . . . . . . 13 . . . . . . 152 693 1455 . Reduced by Siege Mode 180 | . . . . . . . . . . . . . . . . . 64 . . . . . . 116 . . . . . . . Redirected to Shielding 327 | . . . . 11 . . . . . . . . 157 . . . . . . . . 24 . 135 . . . . . . . Ignored by Resistances 249 | . . . . . . . . . . . . . . . . . 167 75 . . . 7 . . . . . . . . . Regen/Repaired (Parts) 9096 | . . . . . 103 295 87 182 204 402 422 259 965 276 182 25 531 179 100 96 118 583 140 441 162 . . 25 106 641 2572 Core Remaining (%) 64 | 100 . 45 . . 42 . . . . . 66 . . . . 31 . . . . 89 . . . . . . 65 . 81 . Volleys Fired 747 | . 5 12 23 25 64 30 17 5 . 55 49 10 36 16 23 7 52 14 15 2 23 55 19 30 6 7 19 11 31 24 62 Largest 5 | . 2 2 2 1 1 1 1 1 . 1 1 1 2 1 1 1 3 2 3 1 2 5 5 5 5 4 1 5 5 3 5 Hottest 568 | . 40 60 130 65 160 160 150 150 . 150 150 53 190 190 190 190 250 88 126 90 167 441 305 318 369 304 61 369 568 520 328 Shots Fired 1265 | . 10 23 42 25 64 30 17 5 . 55 49 10 44 16 23 7 95 20 21 2 32 77 67 106 24 18 19 43 57 28 236 Gun 440 | . 10 23 42 25 . . . . . . . . 18 . . . 73 15 9 . . 26 20 19 4 2 19 8 2 . 125 Cannon 789 | . . . . . 64 30 17 5 . 55 49 8 26 16 23 7 22 1 12 2 24 51 47 87 20 16 . 32 53 18 104 Launcher 36 | . . . . . . . . . . . . 2 . . . . . 4 . . 8 . . . . . . 3 2 10 7 Special . | . . . . . . . . . . . . . . . . . . . . . . . . . . . . . . . . Kinetic 480 | . 10 11 13 . 27 15 17 5 . 28 22 8 16 8 23 5 45 12 6 . 10 2 22 47 . . . . . . 128 Thermal 665 | . . 12 29 25 37 15 . . . 27 27 . 22 8 . 2 50 3 15 2 14 69 42 58 21 13 19 35 50 24 46 Explosive 11 | . . . . . . . . . . . . 2 . . . . . . . . . . . . . . . . . 2 7 Electromagnetic 50 | . . . . . . . . . . . . . 3 . . . . 5 . . 8 6 3 1 3 5 . 8 7 1 . Entropic 51 | . . . . . . . . . . . . . . . . . . . . . . . . . . . . . . 1 50 Phasic 8 | . . . . . . . . . . . . . 3 . . . . . . . . . . . . . . . . . 5 Robot Hit Streak 23 | . 4 5 16 11 9 8 7 2 . 5 5 7 8 6 10 3 23 7 3 . 9 7 14 19 4 7 10 17 7 8 19 Robot Miss Streak 9 | . 1 5 5 7 2 9 2 1 . 4 4 1 2 3 2 3 4 2 2 . 4 7 3 4 3 4 1 3 2 2 4 Penetration Max 2 | . . . . . . . . . . . . . . . 1 . 2 . . . . . 1 . . . . . . . 1 Secondary Targets 7 | . . 2 . . . . . . . . . . . . . . 5 . . . . . . . . . . . . . . Max Gunslinging Chain 1 | . . 1 . . . . . . . . . . . . . . 1 . . . . . . . . . . . . . . Capacitor 17 | . . . . . . . . . . . . . . . . . . . . . . 17 . . . . . . . . . Shots Hit Robots 847 | . 6 7 38 36 57 8 12 3 . 16 32 4 47 13 23 5 54 10 5 . 15 38 54 62 10 10 16 22 21 95 128 Core Hits 612 | . 4 5 45 42 19 5 6 3 . 5 18 2 21 11 23 3 25 12 2 . 12 97 18 52 5 16 5 16 13 41 86 Critical Kills 17 | . . . . . . . . . . . . . . . . . 7 1 . . . . 1 2 . . 1 1 2 . 2 Critical Parts Destroyed 34 | . . . . 3 3 . . . . . . . . . . . 11 . 2 . 1 . 1 2 . 1 3 . . . 7 Critical Strikes 88 | . . . . 3 3 . . . . . . 2 6 . . . 18 1 2 . 1 . 4 5 . 1 4 1 2 18 17 Burn 4 | . . . . . . . . . . . . . 4 . . . . . . . . . . . . . . . . . . Meltdown 3 | . . . . . . . . . . . . . . . . . . . . . . . . . . . . 1 2 . . Destroy 42 | . . . . . 1 . . . . . . . . . . . 18 1 2 . 1 . 4 4 . 1 4 . . . 6 Blast 6 | . . . . . . . . . . . . 2 . . . . . . . . . . . 1 . . . . . . 3 Smash 5 | . . . . 3 2 . . . . . . . . . . . . . . . . . . . . . . . . . . Sever 20 | . . . . . . . . . . . . . 2 . . . . . . . . . . . . . . . . 18 . Detonate 3 | . . . . . . . . . . . . . . . . . . . . . . . . . . . . . . . 3 Sunder 5 | . . . . . . . . . . . . . . . . . . . . . . . . . . . . . . . 5 Melee Attacks 249 | . . . . 17 9 . . . . . . 5 38 . . . . . . . . . . . . . . . . 180 . Impact 26 | . . . . 17 9 . . . . . . . . . . . . . . . . . . . . . . . . . . Slashing 223 | . . . . . . . . . . . . 5 38 . . . . . . . . . . . . . . . . 180 . Piercing . | . . . . . . . . . . . . . . . . . . . . . . . . . . . . . . . . Sneak Attacks 18 | . . . . 3 5 . . . . . . . 1 . . . . . . . . . . . . . . . . 9 . Combat Hostiles 2 | . . . . . 2 . . . . . . . . . . . . . . . . . . . . . . . . . . Follow-up Attacks 45 | . . . . . . . . . . . . . . . . . . . . . . . . . . . . . . 45 . Damage Inflicted 39362 | . 70 134 548 743 2173 316 419 119 . 927 1548 268 1870 799 1159 131 1035 589 127 7 793 5855 1352 1791 308 247 137 690 895 6275 8037 Guns 6019 | . 70 75 548 367 . . . . . . . . 416 . . . 999 43 127 . . 124 197 121 22 15 137 25 . . 2733 Cannons 17255 | . . . . . 1796 316 419 119 . 927 1548 118 725 799 1159 131 36 . . . 393 770 1155 1670 286 232 . 665 691 35 3265 Explosions 8838 | . . . . . . . . . . . . 150 . . . . . 546 . . 400 4841 . . . . . . 117 745 2039 Melee 6967 | . . . . 376 367 . . . . . . . 729 . . . . . . . . . . . . . . . . 5495 . Ramming 283 | . . 59 . . 10 . . . . . . . . . . . . . . 7 . 120 . . . . . . 87 . . Kinetic 10382 | . 70 . 175 . 852 92 419 119 . 763 770 118 346 427 1159 131 379 43 18 . 130 32 515 832 . . . . . . 2992 Thermal 15909 | . . 75 373 367 944 224 . . . 164 778 . 691 372 . . 656 . 109 . 279 5176 834 911 246 225 137 507 628 573 1640 Explosive 2266 | . . . . . . . . . . . . 150 . . . . . . . . . 417 . . . . . . . 207 1492 Electromagnetic 1609 | . . . . . . . . . . . . . 71 . . . . 546 . . 384 110 3 48 62 22 . 183 180 . . Impact 743 | . . . . 376 367 . . . . . . . . . . . . . . . . . . . . . . . . . . Slashing 6224 | . . . . . . . . . . . . . 729 . . . . . . . . . . . . . . . . 5495 . Piercing . | . . . . . . . . . . . . . . . . . . . . . . . . . . . . . . . . Entropic 1844 | . . . . . . . . . . . . . . . . . . . . . . . . . . . . . . . 1844 Phasic 102 | . . . . . . . . . . . . . 33 . . . . . . . . . . . . . . . . . 69 Highest Corruption 33 | . 1 1 . . . 3 3 . . . . . 1 . . 33 4 . 2 . 1 3 3 3 4 4 4 4 4 23 . Average Corruption 4 | . 1 1 . . . 1 2 . . . . . 1 . . 17 2 . 1 . 1 2 3 3 3 4 4 4 3 14 . Corruption Purged 11 | . . . . . . 1 3 . . . . . 1 . . . 4 . 2 . . . . . . . . . . . . Corruption Blocked 26 | . . . . . . . . . . . . . . . . . . . . . . . . . . . . . . . 26 Effects 126 | . 1 2 . . . 1 . . . . . . . . . 4 4 . . . 4 11 9 13 14 7 . 10 3 43 . Message Errors 25 | . . 2 . . . . . . . . . . . . . . . . . . 1 3 1 1 5 1 . 2 . 9 . Matter Fused 36 | . 1 . . . . . . . . . . . . . . 1 3 . . . 1 5 2 4 1 4 . 1 2 11 . Heat Flow Errors 18 | . . . . . . . . . . . . . . . . . . . . . . 2 3 3 1 2 . 1 . 6 . Energy Discharges 16 | . . . . . . . . . . . . . . . . . . . . . . 1 1 3 3 . . 3 . 5 . Parts Rejected 2 | . . . . . . . . . . . . . . . . 1 . . . . . . . . . . . . . 1 . Data Loss (minor) 18 | . . . . . . 1 . . . . . . . . . . 1 . . . 2 . 1 1 3 . . 2 . 7 . Data Loss (major) 4 | . . . . . . . . . . . . . . . . . . . . . . . 1 . . . . 1 . 2 . Misfires 2 | . . . . . . . . . . . . . . . . . . . . . . . . . 1 . . . 1 . . Misdirections 4 | . . . . . . . . . . . . . . . . 2 . . . . . . . . . . . . . 2 . Weapon Failures 1 | . . . . . . . . . . . . . . . . . . . . . . . . 1 . . . . . . . Overload Shots 2 | . . . . . . . . . . . . . . . . . 2 . . . . . . . . . . . . . . Overflow Damage 1844 | . . . . 111 331 19 10 . . 177 8 15 76 . 1 . . 15 . . 35 277 . 1 . . . 4 30 574 160 Projectiles 586 | . . . . . 164 19 10 . . 177 8 . . . 1 . . . . . 35 . . 1 . . . 4 30 6 131 Explosions 390 | . . . . . . . . . . . . 15 . . . . . 15 . . . 277 . . . . . . . 54 29 Melee 868 | . . . . 111 167 . . . . . . . 76 . . . . . . . . . . . . . . . . 514 . Knockbacks 46 | . . 1 . . 2 1 1 . . 5 3 1 2 . 12 1 . . . . . . . 8 . . . . . . 9 Impact 2 | . . 1 . . 1 . . . . . . . . . . . . . . . . . . . . . . . . . . Kinetic 42 | . . . . . 1 1 1 . . 5 2 1 2 . 11 1 . . . . . . . 8 . . . . . . 9 Secondary 2 | . . . . . . . . . . . 1 . . . 1 . . . . . . . . . . . . . . . . Self-Inflicted Damage 505 | . . . . . 5 . . . . . . . . . . . . . . 3 3 294 . . . . . . 42 . 158 Shots 16 | . . . . . . . . . . . . . . . . . . . . . 1 13 . . . . . . . . 2 Rammed 14 | . 2 6 . . 2 . . . . . . . . . . . . . . 1 . . . . . . . . 3 . . Targets Rammed 22 | . 2 6 . . 2 . . . . . . . . . . . . . . 1 . 8 . . . . . . 3 . . Kicked 8 | . . . . . . . . . . . . . . . . . . . . . . 8 . . . . . . . . . Crushed . | . . . . . . . . . . . . . . . . . . . . . . . . . . . . . . . . Highest Temperature 424 | . 16 20 230 15 362 247 198 183 . 197 272 56 352 355 273 234 417 42 104 22 237 350 199 199 151 204 . 205 200 340 424 Average Temperature 111 | . 9 15 65 7 117 91 95 93 . 109 116 23 144 142 93 85 143 18 37 16 105 114 102 115 75 78 . 71 65 122 134 Received Heat Transfer 5431 | . 159 . 123 198 108 72 36 54 . 306 204 4 918 72 72 291 432 45 . 15 21 309 . 727 9 . . 64 98 455 639 Effects 16 | . . . . . 1 2 . . . . . . 2 . . . 6 . . . . 1 . . . . . . . 1 3 Shutdowns 1 | . . . . . . . . . . . . . . . . . . . . . . . . . . . . . . . 1 Energy Bleed 4 | . . . . . . . . . . . . . 1 . . . 1 . . . . 1 . . . . . . . 1 . Interference 4 | . . . . . . 2 . . . . . . . . . . 2 . . . . . . . . . . . . . . Matter Decay 1 | . . . . . . . . . . . . . . . . . 1 . . . . . . . . . . . . . . Short Circuit 2 | . . . . . 1 . . . . . . . . . . . . . . . . . . . . . . . . . 1 Damage (minor) 4 | . . . . . . . . . . . . . 1 . . . 2 . . . . . . . . . . . . . 1 Siege Activations 5 | . . . . . . . . . . . . . . . . . 1 . . . . . 1 3 . . . . . . . Total Turns 133 | . . . . . . . . . . . . . . . . . 47 . . . . . 5 81 . . . . . . . Longest Duration 57 | . . . . . . . . . . . . . . . . . 47 . . . . . 5 57 . . . . . . . Robots Corrupted 2 | . . . . . . . . . . . . . . . . . . 2 . . . . . . . . . . . . . Combat Hostiles 2 | . . . . . . . . . . . . . . . . . . 2 . . . . . . . . . . . . . Parts Fried 16 | . . . . 4 4 . . . . . . . . . . . . 4 . . 1 1 . 2 . . . . . . . Impact Corruptions 13 | . . . . 5 8 . . . . . . . . . . . . . . . . . . . . . . . . . . Robots Melted 19 | . . . . . . . . . . . . . . . . . . . . . . 4 5 5 . . . 2 3 . . Combat Hostiles 18 | . . . . . . . . . . . . . . . . . . . . . . 4 5 5 . . . 2 2 . . Parts Melted 63 | . . 1 1 . 2 . . . . 2 . . 2 . . . . . 1 . . 21 6 13 1 2 1 2 6 2 . Heat Transferred 24782 | . . 175 541 460 1036 259 . . . 111 555 . 926 259 . . 666 . 111 . 50 6194 3626 3774 518 888 592 1221 1344 794 682 Parts Sabotaged . | . . . . . . . . . . . . . . . . . . . . . . . . . . . . . . . . Parts Stolen . | . . . . . . . . . . . . . . . . . . . . . . . . . . . . . . . . Parts Stripped . | . . . . . . . . . . . . . . . . . . . . . . . . . . . . . . . . Power Chain Reactions 2 | . . . . . . . . . . . . . . . . . . . . . 1 . . . . . . . . 1 . Alert | -11 -10 -10 -9 -9 -9 -7 -7 -7 -7 -7 -6 -6 -6 -6 -6 -6 -5 -5 -5 -5 -4 -4 -4 -4 -4 -4 -4 -3 -3 -3 -2 ------- Run | Yrd Mat Min Mat Sto Rec Fac Low Low Zio Dee Pro Fac Ext Cet Arc Hub Fac Upp Upp War Pro Fac Was Fac Upp Upp Zhi Pro Res Tes Res Peak Influence 1048 | . 118 114 191 530 136 278 . . . . . 490 476 387 337 330 415 . . . . 947 320 724 . . . . 911 1048 970 Initial 569 | . . 34 1 48 136 234 . . . . . 487 75 266 118 . 142 . . . . 42 310 84 . . . . 300 520 569 Average 250 | . 52 79 86 342 56 185 . . . . . 430 216 341 115 151 234 . . . . 491 237 447 . . . . 542 673 291 Maximum Alert Level 3 | . . . . 2 . 1 . . . . . 2 2 1 1 1 2 . . . . 3 1 3 . . . . 3 3 3 Low Security (%) 53 | 100 100 100 100 18 100 49 . . . . . . 43 9 73 48 42 . . . . 25 39 20 . . . . . . 43 Level 1 23 | . . . . 42 . 50 . . . . . 30 52 90 26 51 56 . . . . 8 60 3 . . . . 40 . 23 Level 2 17 | . . . . 39 . . . . . . . 68 4 . . . . . . . . 31 . 72 . . . . 31 69 26 Level 3 5 | . . . . . . . . . . . . . . . . . . . . . . 34 . 3 . . . . 27 30 7 Level 4 . | . . . . . . . . . . . . . . . . . . . . . . . . . . . . . . . . Level 5 . | . . . . . . . . . . . . . . . . . . . . . . . . . . . . . . . . High Security . | . . . . . . . . . . . . . . . . . . . . . . . . . . . . . . . . Max Security . | . . . . . . . . . . . . . . . . . . . . . . . . . . . . . . . . Squads Dispatched 41 | . 3 . . 2 . 3 . . . . . 2 1 . . 4 5 . . . . 7 . 3 . . . . 5 5 1 Investigation 13 | . 1 . . 2 . 1 . . . . . . . . . 2 3 . . . . 1 . . . . . . 2 1 . Extermination 11 | . . . . . . 2 . . . . . . . . . . 2 . . . . 2 . 1 . . . . . 4 . Reinforcement 16 | . 2 . . . . . . . . . . 2 1 . . 1 . . . . . 4 . 2 . . . . 3 . 1 Assault 1 | . . . . . . . . . . . . . . . . 1 . . . . . . . . . . . . . . . Garrison . | . . . . . . . . . . . . . . . . . . . . . . . . . . . . . . . . Intercept . | . . . . . . . . . . . . . . . . . . . . . . . . . . . . . . . . Searches Triggered 3 | . . . . . . . . . . . . 1 . . . . . . . . . . . . . . . . . 2 . Construction Impeded 2 | . . . . . . . . . . . . . . . . . . . . . . 1 . 1 . . . . . . . Haulers Reinforced 4 | . . . . . . . . . . . . . . . . . . . . . . 1 . . . . . . 2 . 1 Active Scanning Responses . | . . . . . . . . . . . . . . . . . . . . . . . . . . . . . . . . Cargo Convoy Interrupts . | . . . . . . . . . . . . . . . . . . . . . . . . . . . . . . . . Stealth | -11 -10 -10 -9 -9 -9 -7 -7 -7 -7 -7 -6 -6 -6 -6 -6 -6 -5 -5 -5 -5 -4 -4 -4 -4 -4 -4 -4 -3 -3 -3 -2 --------- Run | Yrd Mat Min Mat Sto Rec Fac Low Low Zio Dee Pro Fac Ext Cet Arc Hub Fac Upp Upp War Pro Fac Was Fac Upp Upp Zhi Pro Res Tes Res Distress Signals 30 | . 3 . 2 3 . 2 . . . . . 2 1 2 . . 1 . . 2 . 2 . . . . . . 4 2 4 Communications Jammed 59 | . . . . . . . . . . . . . . . . . . . . . . 12 . . . . . . . 47 . Distress Signals 56 | . . . . . . . . . . . . . . . . . . . . . . 9 . . . . . . . 47 . Times Spotted 521 | . 13 4 18 22 5 15 12 4 . 15 13 9 25 10 17 27 23 14 3 8 11 51 7 22 3 6 . 7 43 46 68 Peak Tracking Total 15 | . 9 3 5 4 1 6 3 4 . 4 3 6 8 5 3 14 5 7 3 7 4 10 2 9 2 5 . 5 15 7 11 Tactical Retreats 47 | . . 1 . 1 . 1 . . . . . 2 . . . 4 4 5 2 . 2 6 1 . . 1 . 1 10 3 3 Traps | -11 -10 -10 -9 -9 -9 -7 -7 -7 -7 -7 -6 -6 -6 -6 -6 -6 -5 -5 -5 -5 -4 -4 -4 -4 -4 -4 -4 -3 -3 -3 -2 ------- Run | Yrd Mat Min Mat Sto Rec Fac Low Low Zio Dee Pro Fac Ext Cet Arc Hub Fac Upp Upp War Pro Fac Was Fac Upp Upp Zhi Pro Res Tes Res Traps Triggered 16 | . 1 . . 2 . 1 . . . . . . 3 . . 2 1 . . . . 2 . 1 . . . . 3 . . Indirectly . | . . . . . . . . . . . . . . . . . . . . . . . . . . . . . . . . Trap Hack Attempts . | . . . . . . . . . . . . . . . . . . . . . . . . . . . . . . . . Triggered . | . . . . . . . . . . . . . . . . . . . . . . . . . . . . . . . . Disarmed . | . . . . . . . . . . . . . . . . . . . . . . . . . . . . . . . . Reprogrammed . | . . . . . . . . . . . . . . . . . . . . . . . . . . . . . . . . Reused 1 | . . . . . . . . . . 1 . . . . . . . . . . . . . . . . . . . . . Traps Extracted . | . . . . . . . . . . . . . . . . . . . . . . . . . . . . . . . . Installed 1 | . . . . . . . . . . 1 . . . . . . . . . . . . . . . . . . . . . Triggered 21 | . . . . . . . 4 5 . . 1 . . . . . . . . 8 . . . . 1 1 . 1 . . . Most Traps Carried 1 | . . . . . . . . 1 1 1 . . . . . . . . . . . . . . . . . . . . . Machines | -11 -10 -10 -9 -9 -9 -7 -7 -7 -7 -7 -6 -6 -6 -6 -6 -6 -5 -5 -5 -5 -4 -4 -4 -4 -4 -4 -4 -3 -3 -3 -2 ---------- Run | Yrd Mat Min Mat Sto Rec Fac Low Low Zio Dee Pro Fac Ext Cet Arc Hub Fac Upp Upp War Pro Fac Was Fac Upp Upp Zhi Pro Res Tes Res Machines Disabled 23 | . . . . 1 . . 1 . . 3 . . 2 . 4 1 . 1 . 1 . 4 . 1 . . . . 1 2 1 Max in Single Turn 1 | . . . . 1 . . 1 . . 1 . . 1 . 1 1 . 1 . 1 . 1 . 1 . . . . 1 1 1 Garrison Access 2 | . . . . . . . . . . . . . . . . 1 . . . . . . . . . . . . . . 1 Network Hub 2 | . . . . . . . . . . . . . . . . 2 . . . . . . . . . . . . . . . Machines Repaired . | . . . . . . . . . . . . . . . . . . . . . . . . . . . . . . . . Machines Dismantled . | . . . . . . . . . . . . . . . . . . . . . . . . . . . . . . . . Machines Sabotaged . | . . . . . . . . . . . . . . . . . . . . . . . . . . . . . . . . Overloaded Fab Kills 2 | . . . . . . . . . . . . . . . . . . . . . . . . . . . . . . 2 . Hacking | -11 -10 -10 -9 -9 -9 -7 -7 -7 -7 -7 -6 -6 -6 -6 -6 -6 -5 -5 -5 -5 -4 -4 -4 -4 -4 -4 -4 -3 -3 -3 -2 --------- Run | Yrd Mat Min Mat Sto Rec Fac Low Low Zio Dee Pro Fac Ext Cet Arc Hub Fac Upp Upp War Pro Fac Was Fac Upp Upp Zhi Pro Res Tes Res Machines Accessed 97 | . 2 . 4 9 8 6 . 1 1 . . 3 11 2 . 2 11 . 2 2 . 4 . 5 1 . 9 . 2 10 2 Terminals 63 | . 1 . 3 7 5 5 . . . . . 3 10 2 . 2 6 . . . . 2 . 5 . . . . 2 9 1 Fabricators 4 | . . . . . . . . . . . . . . . . . 2 . . . . 1 . . . . . . . 1 . Repair Stations . | . . . . . . . . . . . . . . . . . . . . . . . . . . . . . . . . Recycling Units 10 | . 1 . . 2 3 1 . . . . . . 1 . . . 2 . . . . . . . . . . . . . . Scanalyzers 3 | . . . 1 . . . . . . . . . . . . . 1 . . . . 1 . . . . . . . . . Garrison Access 1 | . . . . . . . . . . . . . . . . . . . . . . . . . . . . . . . 1 Total Hacks 325 | . 6 . 10 17 22 14 . 1 4 . . 5 20 3 . 4 67 . 5 7 . 13 . 19 1 . 48 . 8 48 3 Successful 176 | . 4 . 4 8 12 4 . 1 4 . . 1 5 1 . 2 41 . 5 7 . 4 . 5 1 . 48 . 2 17 . Failed 147 | . 2 . 6 9 9 10 . . . . . 4 15 2 . 2 25 . . . . 9 . 14 . . . . 6 31 3 Catastrophic 46 | . 1 . . 3 1 4 . . . . . 1 4 1 . 1 7 . . . . 6 . 5 . . . . 1 9 2 Database Lockouts 2 | . . . . . 1 . . . . . . . . . . . 1 . . . . . . . . . . . . . . Manual 131 | . 5 . 2 7 10 10 . . 4 . . 3 7 1 . 4 32 2 . . . 6 . 9 . . . . 2 26 1 Terminals 210 | . 5 . 6 15 13 12 . . . . . 5 19 3 . 4 46 . . . . 7 . 19 . . . . 8 47 1 Fabricators 11 | . . . . . . . . . . . . . . . . . 6 . . . . 4 . . . . . . . 1 . Repair Stations . | . . . . . . . . . . . . . . . . . . . . . . . . . . . . . . . . Recycling Units 23 | . 1 . . 2 9 2 . . . . . . 1 . . . 8 . . . . . . . . . . . . . . Scanalyzers 13 | . . . 4 . . . . . . . . . . . . . 7 . . . . 2 . . . . . . . . . Garrison Access 2 | . . . . . . . . . . . . . . . . . . . . . . . . . . . . . . . 2 Terminal Hacks 119 | . 2 . . 5 7 1 . 1 4 . . 1 4 1 . . 20 . 5 7 . . . 4 1 . 48 . 2 6 . Record 41 | . . . . . . . . . . . . . . 1 . . . . 4 . . . . . . . 36 . . . . Part Schematic 12 | . 1 . . . 2 . . . 4 . . . . . . . 1 . . . . . . . . . 4 . . . . Robot Analysis 6 | . . . . . 2 . . . . . . . . . . . . . . . . . . . . . 4 . . . . Prototype ID Bank 14 | . . . . . 1 . . . . . . . . . . . 1 . . 6 . . . 1 . . 4 . 1 . . Open Door 12 | . . . . 3 . . . 1 . . . . 4 . . . . . 1 1 . . . . 1 . . . . 1 . Level Access Points 1 | . . . . . . . . . . . . . . . . . . . . . . . . . . . . . . 1 . Branch Access Points 3 | . . . . 1 . . . . . . . . . . . . 1 . . . . . . 1 . . . . . . . Emergency Access Points 2 | . . . . . . . . . . . . . . . . . 1 . . . . . . . . . . . . 1 . Machine Index 1 | . . . . . . . . . . . . . . . . . 1 . . . . . . . . . . . . . . Terminal Index 3 | . . . . . . . . . . . . . . . . . 1 . . . . . . 1 . . . . . 1 . Alert Level 3 | . . . . . . . . . . . . . . . . . 3 . . . . . . . . . . . . . . Unreport Threat 5 | . . . . . 1 . . . . . . 1 . . . . 2 . . . . . . . . . . . 1 . . Locate Traps 4 | . 1 . . . . . . . . . . . . . . . 2 . . . . . . . . . . . . 1 . Patrol Status 2 | . . . . . . . . . . . . . . . . . 2 . . . . . . . . . . . . . . Transport Status 1 | . . . . . . . . . . . . . . . . . 1 . . . . . . . . . . . . . . Registered Components 1 | . . . . . . . . . . . . . . . . . . . . . . . . 1 . . . . . . . Registered Prototypes 1 | . . . . . . . . . . . . . . . . . 1 . . . . . . . . . . . . . . Zone Layout 7 | . . . . 1 1 1 . . . . . . . . . . 3 . . . . . . . . . . . . 1 . Fabricator Hacks 5 | . . . . . . . . . . . . . . . . . 4 . . . . 1 . . . . . . . . . Load Schematic 3 | . . . . . . . . . . . . . . . . . 2 . . . . 1 . . . . . . . . . Build 2 | . . . . . . . . . . . . . . . . . 2 . . . . . . . . . . . . . . Repair Station Hacks . | . . . . . . . . . . . . . . . . . . . . . . . . . . . . . . . . Recycling Unit Hacks 7 | . . . . 1 2 1 . . . . . . . . . . 3 . . . . . . . . . . . . . . Report Inventory 1 | . . . . . . . . . . . . . . . . . 1 . . . . . . . . . . . . . . Retrieve Components 6 | . . . . 1 2 1 . . . . . . . . . . 2 . . . . . . . . . . . . . . Scanalyzer 7 | . . . 3 . . . . . . . . . . . . . 4 . . . . . . . . . . . . . . Insert Component 4 | . . . 2 . . . . . . . . . . . . . 2 . . . . . . . . . . . . . . Analyze 3 | . . . 1 . . . . . . . . . . . . . 2 . . . . . . . . . . . . . . Garrison Access Hacks . | . . . . . . . . . . . . . . . . . . . . . . . . . . . . . . . . Unauthorized Hacks 38 | . 2 . 1 2 3 2 . . . . . . 1 . . 2 10 . . . . 3 . 1 . . . . . 11 . Terminals 28 | . 1 . 1 1 . 2 . . . . . . 1 . . 2 6 . . . . 3 . 1 . . . . . 10 . Track 5 | . . . . . . . . . . . . . . . . . 1 . . . . 1 . . . . . . . 3 . Assimilate 2 | . . . . . . 1 . . . . . . . . . . 1 . . . . . . . . . . . . . . Botnet 16 | . . . 1 1 . 1 . . . . . . 1 . . 2 2 . . . . 2 . 1 . . . . . 5 . Disrupt 3 | . 1 . . . . . . . . . . . . . . . 1 . . . . . . . . . . . . 1 . Operators 2 | . . . . . . . . . . . . . . . . . 1 . . . . . . . . . . . . 1 . Fabricators 2 | . . . . . . . . . . . . . . . . . 1 . . . . . . . . . . . . 1 . Prioritize 1 | . . . . . . . . . . . . . . . . . 1 . . . . . . . . . . . . . . Overload 1 | . . . . . . . . . . . . . . . . . . . . . . . . . . . . . . 1 . Repair Stations . | . . . . . . . . . . . . . . . . . . . . . . . . . . . . . . . . Recycling Units 8 | . 1 . . 1 3 . . . . . . . . . . . 3 . . . . . . . . . . . . . . Monitor 1 | . . . . . . . . . . . . . . . . . 1 . . . . . . . . . . . . . . Reject 2 | . . . . . . . . . . . . . . . . . 2 . . . . . . . . . . . . . . Tunnel 5 | . 1 . . 1 3 . . . . . . . . . . . . . . . . . . . . . . . . . . Scanalyzers . | . . . . . . . . . . . . . . . . . . . . . . . . . . . . . . . . Garrison Access . | . . . . . . . . . . . . . . . . . . . . . . . . . . . . . . . . Data Cores Recovered 2 | . . . . . . . . . . . . . . . . . . . . . . . . . . . . . 1 1 . Used 1 | . . . . . . . . . . . . . . . . . . . . . . . . . . . . . 1 . . Hacking Detections 68 | . 1 . 4 6 5 5 . . . . . 3 9 2 . 2 10 . . . . 4 . 5 . . . . 2 8 2 Full Trace Events 5 | . . . . . 1 . . . . . . . . . . . 3 . . . . 1 . . . . . . . . . Feedback Events . | . . . . . . . . . . . . . . . . . . . . . . . . . . . . . . . . Feedback Blocked . | . . . . . . . . . . . . . . . . . . . . . . . . . . . . . . . . Robot Schematics Acquired . | . . . . . . . . . . . . . . . . . . . . . . . . . . . . . . . . Robots Built . | . . . . . . . . . . . . . . . . . . . . . . . . . . . . . . . . Authchips . | . . . . . . . . . . . . . . . . . . . . . . . . . . . . . . . . Time . | . . . . . . . . . . . . . . . . . . . . . . . . . . . . . . . . Total Robot Build Rating . | . . . . . . . . . . . . . . . . . . . . . . . . . . . . . . . . Part Schematics Acquired 14 | . 1 . 1 . 2 . . . 4 . . . . . . . 2 . . . . . . . . . 4 . . . . Parts Built 4 | . . . . . . . . . . . . . . . . . 4 . . . . . . . . . . . . . . Authchips . | . . . . . . . . . . . . . . . . . . . . . . . . . . . . . . . . Time 54 | . . . . . . . . . . . . . . . . . 54 . . . . . . . . . . . . . . Total Part Build Rating 12 | . . . . . . . . . . . . . . . . . 12 . . . . . . . . . . . . . . Parts Repaired . | . . . . . . . . . . . . . . . . . . . . . . . . . . . . . . . . Time . | . . . . . . . . . . . . . . . . . . . . . . . . . . . . . . . . Parts Recycled . | . . . . . . . . . . . . . . . . . . . . . . . . . . . . . . . . Recycled Matter . | . . . . . . . . . . . . . . . . . . . . . . . . . . . . . . . . Retrieved Matter . | . . . . . . . . . . . . . . . . . . . . . . . . . . . . . . . . Retrieved Components 15 | . . . . 2 7 . . . . . . . . . . . 6 . . . . . . . . . . . . . . Parts Scanalyzed 2 | . . . 1 . . . . . . . . . . . . . 1 . . . . . . . . . . . . . . Part Schematics Acquired 2 | . . . 1 . . . . . . . . . . . . . 1 . . . . . . . . . . . . . . Parts Damaged 1 | . . . . . . . . . . . . . . . . . 1 . . . . . . . . . . . . . . Bothacking | -11 -10 -10 -9 -9 -9 -7 -7 -7 -7 -7 -6 -6 -6 -6 -6 -6 -5 -5 -5 -5 -4 -4 -4 -4 -4 -4 -4 -3 -3 -3 -2 ------------ Run | Yrd Mat Min Mat Sto Rec Fac Low Low Zio Dee Pro Fac Ext Cet Arc Hub Fac Upp Upp War Pro Fac Was Fac Upp Upp Zhi Pro Res Tes Res Used RIF Installer . | . . . . . . . . . . . . . . . . . . . . . . . . . . . . . . . . Robots Hacked . | . . . . . . . . . . . . . . . . . . . . . . . . . . . . . . . . Non-combat . | . . . . . . . . . . . . . . . . . . . . . . . . . . . . . . . . Combat . | . . . . . . . . . . . . . . . . . . . . . . . . . . . . . . . . Robot Hacks Applied . | . . . . . . . . . . . . . . . . . . . . . . . . . . . . . . . . Relay Couplers Released 6 | . . . . . . . . . . . . . . . . 4 . . . . . . . . . . . . . . 2 Machine Destruction 6 | . . . . . . . . . . . . . . . . 4 . . . . . . . . . . . . . . 2 Fabnet Peak Effective % . | . . . . . . . . . . . . . . . . . . . . . . . . . . . . . . . . Robots Rewired 22 | . . . . . 2 . 4 . . . . . 11 . . . . . . 5 . . . . . . . . . . . Allies Hacked . | . . . . . . . . . . . . . . . . . . . . . . . . . . . . . . . . Hacks Repelled . | . . . . . . . . . . . . . . . . . . . . . . . . . . . . . . . . Allies | -11 -10 -10 -9 -9 -9 -7 -7 -7 -7 -7 -6 -6 -6 -6 -6 -6 -5 -5 -5 -5 -4 -4 -4 -4 -4 -4 -4 -3 -3 -3 -2 -------- Run | Yrd Mat Min Mat Sto Rec Fac Low Low Zio Dee Pro Fac Ext Cet Arc Hub Fac Upp Upp War Pro Fac Was Fac Upp Upp Zhi Pro Res Tes Res Total Allies 78 | . . 2 . 10 2 1 4 . 8 . . . 19 5 . . 1 . 2 5 . . 19 . . . . . . . . Largest Group 19 | . . 2 2 10 2 3 4 4 11 11 1 . 12 14 11 7 1 . 2 5 2 . 19 19 . . . . . . . Highest-Rated Group 829 | . . 39 39 88 42 68 118 118 352 352 26 . 417 829 612 390 10 . 50 244 111 . 702 702 . . . . . . . Highest-Rated Ally 159 | . . 31 31 16 27 27 31 31 51 51 26 . 159 159 159 96 10 . 25 68 68 . 50 50 . . . . . . . Total Orders 61 | . . . . 2 2 12 10 . . 9 . 5 6 . . 2 . . . . . . . 10 . . . . . 3 . STAY 12 | . . . . 1 . 2 1 . . 3 . . 2 . . 1 . . . . . . . 1 . . . . . 1 . ROAM 1 | . . . . . . . . . . 1 . . . . . . . . . . . . . . . . . . . . . FOLLOW 5 | . . . . 1 . . 1 . . 1 . . 2 . . . . . . . . . . . . . . . . . . EXPLORE 25 | . . . . . . 6 4 . . 3 . 4 . . . 1 . . . . . . . 6 . . . . . 1 . RETURN 18 | . . . . . 2 4 4 . . 1 . 1 2 . . . . . . . . . . 3 . . . . . 1 . Ally Attacks 594 | . . . 24 70 15 2 45 6 . 123 6 . 121 36 19 28 . . 4 2 12 . . 81 . . . . . . . Total Damage 15669 | . . . 336 655 196 50 813 125 . 4233 65 . 3432 1126 596 708 . . 139 156 323 . . 2716 . . . . . . . Kills 94 | . . . 3 12 2 . 9 1 . 17 . . 16 6 3 4 . . 1 . 3 . . 17 . . . . . . . Allies Corrupted 3 | . . . . . . . . . . . 1 . . . . 1 . . . . . . . 1 . . . . . . . Allies Melted 5 | . . . . . . . . . . . . . . . . . . . . 1 . . . 1 . . . 2 . . 1 Intel | -11 -10 -10 -9 -9 -9 -7 -7 -7 -7 -7 -6 -6 -6 -6 -6 -6 -5 -5 -5 -5 -4 -4 -4 -4 -4 -4 -4 -3 -3 -3 -2 ------- Run | Yrd Mat Min Mat Sto Rec Fac Low Low Zio Dee Pro Fac Ext Cet Arc Hub Fac Upp Upp War Pro Fac Was Fac Upp Upp Zhi Pro Res Tes Res Robot Analysis Total 6 | . . . . . 2 . . . . . . . . . . . . . . . . . . . . . 4 . . . . Derelict Logs Recovered 12 | . . 1 . . . . 1 3 1 . 2 . . . . . . 1 . . 2 . . . 1 . . . . . . Drone Launches 35 | . . . . . 2 9 4 . . 4 . 4 2 . . 2 . . . . . . . 6 . . . . . 2 . Drone Recoveries 19 | . . . . . 2 3 4 . . . . 2 2 . . . . . . . . . . 5 . . . . . 1 . Exploration | -11 -10 -10 -9 -9 -9 -7 -7 -7 -7 -7 -6 -6 -6 -6 -6 -6 -5 -5 -5 -5 -4 -4 -4 -4 -4 -4 -4 -3 -3 -3 -2 ------------- Run | Yrd Mat Min Mat Sto Rec Fac Low Low Zio Dee Pro Fac Ext Cet Arc Hub Fac Upp Upp War Pro Fac Was Fac Upp Upp Zhi Pro Res Tes Res Turns Passed 36918 | 78 112 482 754 963 4084 795 2560 1742 1814 4225 1522 402 1545 582 1403 196 804 703 1172 871 646 971 664 719 813 458 219 623 386 1274 3336 Spaces Moved 22348 | 53 81 255 430 561 1018 511 992 955 1066 1476 926 443 1069 259 176 243 757 820 1102 891 963 886 394 465 922 737 267 711 543 1160 1216 Core 3 | 3 . . . . . . . . . . . . . . . . . . . . . . . . . . . . . . . Treads 6441 | . . 48 3 . . 3 797 955 1066 1256 . . 557 13 . . 8 40 633 . . . 378 461 47 . . . . . 176 Legs 2954 | 50 37 . . . 297 4 . . . 220 328 . 257 246 176 243 450 . . . . 480 16 . 6 . . . . . 144 Wheels 2849 | . 44 207 427 561 721 504 195 . . . . . . . . . . . . . . . . . . . . . . . 190 Hover 6748 | . . . . . . . . . . . 598 443 255 . . . . . . 264 377 . . 4 869 737 267 711 543 1160 520 Flight 3353 | . . . . . . . . . . . . . . . . . 299 780 469 627 586 406 . . . . . . . . 186 Fastest Speed 20 | 50 100 100 130 135 140 105 120 168 168 151 107 60 55 55 55 55 31 20 37 38 38 33 71 71 45 56 45 45 45 40 97 Average Speed 111 | 116 109 160 136 137 241 123 163 168 168 187 122 70 79 70 62 65 62 33 79 64 53 78 106 99 59 56 55 45 47 57 216 Slowest Speed 1080 | 120 120 320 320 140 820 320 236 168 168 236 151 114 114 240 78 78 240 79 84 89 81 158 136 1080 142 56 107 45 48 97 362 Overloaded Moves 1000 | . . . . . . . . . . . . . . . . . . 59 27 . . 22 . . . . . . 542 350 . Propulsion Burnouts . | . . . . . . . . . . . . . . . . . . . . . . . . . . . . . . . . Robots Hopped 8 | . . . . . . . . . . . . . . . . . 1 4 . . . 3 . . . . . . . . . Cave-ins Triggered . | . . . . . . . . . . . . . . . . . . . . . . . . . . . . . . . . Teleports 1 | . . . . . . . . . . . . . . . . . . . . . . . . . . . . . . . 1 Exploration Rate (%) 63 | 4 22 35 44 77 99 30 92 98 88 83 90 16 78 68 80 41 20 79 95 92 87 37 96 20 87 78 63 80 23 86 33 Regions Visited 31 Branch Regions 21 Pre-discovered Areas 14 | . 1 1 . 1 3 . . 1 2 . 1 . . . . . . 1 . . . . . . . . 3 . . . . Known Exits Taken 21 | . . . 1 1 . 1 1 1 1 1 1 1 . . . . 1 1 1 1 1 . . 1 1 1 1 1 1 1 . Unknown Exits Taken 8 | 1 1 1 . . 1 . . . . . . . 1 1 1 1 . . . . . . . . . . . . . . . Scrap Searched 31 | . . . . . . . 2 2 3 . 3 . . . . . . 5 3 . 2 . . . 4 2 . 5 . . . Spaces Dug 230 | . . . . 1 1 12 . . . 16 . 54 3 . . 2 25 1 12 . 5 9 1 10 1 . . 5 23 48 1 Terrain Destroyed 587 | . . . . 1 11 20 4 1 . 46 18 55 12 1 6 2 28 2 12 . 19 42 5 18 8 1 . 11 30 113 121 Melee 30 | . . . . 1 . . . . . . . 5 3 . . . . . . . . . . . . . . . . 21 . Projectile 335 | . . . . . 11 20 4 1 . 46 18 3 9 1 6 2 27 1 12 . 12 15 5 18 8 1 . 5 23 16 71 AOE 220 | . . . . . . . . . . . . 47 . . . . . . . . 7 27 . . . . . 6 7 76 50 Terrain Rammed . | . . . . . . . . . . . . . . . . . . . . . . . . . . . . . . . . Walls Destroyed . | . . . . . . . . . . . . . . . . . . . . . . . . . . . . . . . . Machines Disabled . | . . . . . . . . . . . . . . . . . . . . . . . . . . . . . . . . Actions | -11 -10 -10 -9 -9 -9 -7 -7 -7 -7 -7 -6 -6 -6 -6 -6 -6 -5 -5 -5 -5 -4 -4 -4 -4 -4 -4 -4 -3 -3 -3 -2 --------- Run | Yrd Mat Min Mat Sto Rec Fac Low Low Zio Dee Pro Fac Ext Cet Arc Hub Fac Upp Upp War Pro Fac Was Fac Upp Upp Zhi Pro Res Tes Res Total 33114 | 66 93 290 552 707 2580 650 1908 1091 1089 2914 1261 514 1669 653 1445 270 997 1228 1375 1194 1050 1092 596 658 1169 766 312 984 625 1547 1769 Wait 7950 | . 3 6 52 36 1407 37 846 115 23 1207 257 22 351 315 1234 9 75 356 222 171 39 48 144 101 223 15 4 229 20 85 298 Move 22303 | 52 80 254 429 560 1017 510 991 954 1065 1475 925 442 1068 258 175 242 754 811 1101 891 962 880 393 464 921 736 266 710 542 1159 1216 Hop 8 | . . . . . . . . . . . . . . . . . 1 4 . . . 3 . . . . . . . . . Pick Up 527 | 7 1 3 30 29 23 29 7 8 . 70 8 9 35 22 4 . 35 9 12 16 4 28 13 24 7 3 6 10 9 25 41 Fast Attach 100 | 5 . . . 4 2 1 1 . . 7 1 . 3 6 . 1 2 2 2 5 3 7 2 5 . . 4 1 . 12 24 Attach 174 | 1 . 5 6 4 1 9 . 1 . 8 3 8 21 . 1 2 15 5 5 11 1 12 3 5 3 . 2 . 4 8 30 Detach 60 | . . . . . 2 2 . . . 5 . 4 8 1 . 1 5 2 . 4 1 8 . . 1 . . . . 6 10 Swap 327 | 1 2 3 8 3 3 9 13 1 1 10 11 7 11 4 5 5 36 10 5 10 10 13 4 5 1 2 2 12 8 83 29 Drop 561 | . . 1 4 29 35 23 10 7 . 75 7 7 32 31 3 3 22 15 13 26 7 30 18 24 7 3 9 11 8 42 59 Fire 747 | . 5 12 23 25 64 30 17 5 . 55 49 10 36 16 23 7 52 14 15 2 23 55 19 30 6 7 19 11 31 24 62 Melee 172 | . . . . 17 9 . . . . . . 5 38 . . . . . . . . . . . . . . . . 103 . Ram 7 | . 2 . . . 2 . . . . . . . . . . . . . . . . . . . . . . . 3 . . Kick 8 | . . . . . . . . . . . . . . . . . . . . . . 8 . . . . . . . . . Crush 6 | . . 6 . . . . . . . . . . . . . . . . . . . . . . . . . . . . . Escape Stasis 15 | . . . . . . . . . . . . . 15 . . . . . . . . . . . . . . . . . . Rewire 148 | . . . . . 15 . 23 . . 1 . . 51 . . . . . . 58 . . . . . . . . . . . Trap 1 | . . . . . . . . . . 1 . . . . . . . . . . . . . . . . . . . . . Miscellaneous . | . . . . . . . . . . . . . . . . . . . . . . . . . . . . . . . . Route ------- -11/Scrapyard -10/Materials -10/Mines -9/Materials (discovered 4 exits: *Mat / [*Min] / *Sto x2) -9/Storage (discovered 2 exits: Mat / *Rec) -9/Recycling -7/Factory (discovered 2 exits: *Fac / *Low) -7/Lower Caves (discovered 2 exits: *Low / *Zio) -7/Lower Caves (discovered 2 exits: *Fac / *Zio) -7/Zion (discovered 2 exits: *Dee / [*Pro]) -7/Deep Caves -6/Proximity Caves -6/Factory -6/Extension (discovered 2 exits: *Fac / *Cet) -6/Cetus (discovered 2 exits: *Fac / [*Arc]) -6/Archives (discovered 3 exits: *Fac / *Hub x2) -6/Hub_04(d) -5/Factory (discovered 2 exits: *Upp x2) -5/Upper Caves -5/Upper Caves (discovered 2 exits: *Fac / *War) -5/Warlord -4/Proximity Caves -4/Factory (discovered 2 exits: *Res x2) -4/Waste -4/Factory (discovered 3 exits: *Upp x2 / Arm) -4/Upper Caves -4/Upper Caves (discovered 2 exits: *Res / *Zhi) -4/Zhirov -3/Proximity Caves -3/Research (discovered 3 exits: *Res x2 / *Tes) -3/Testing -2/Research History --------- Turn | Location | Event 4 | -11/Scrapyard | Discovered new exit (range 15) 79 | -11/Scrapyard | Entered Materials 161 | -10/Materials | Discovered new exit (range 14) 191 | -10/Materials | Entered Mines 218 | -10/Mines | Lost 3 parts (1p1n1w) 261 | -10/Mines | Core integrity fell below 50% 302 | -10/Mines | Build established: Mutant 652 | -10/Mines | Discovered new exit (range 5) 673 | -10/Mines | Entered Materials 673 | -9/Materials | Accompanied by 2 allies 673 | -9/Materials | Evolved 2 slots: Utility x2 678 | -9/Materials | Led the pair of lost Derelicts to an unsafe place 745 | -9/Materials | Discovered new exit (range 16) 1095 | -9/Materials | Discovered new exit (range 10) 1273 | -9/Materials | Lost 4 parts (1p1n1u1w) 1348 | -9/Materials | Discovered new exit (range 9) 1375 | -9/Materials | Discovered new exit (range 15) 1408 | -9/Materials | Identified exit to Materials 1426 | -9/Materials | Identified exit to Storage 1427 | -9/Materials | Entered Storage 1588 | -9/Storage | Assisted by bots powering up and referring to "LRC-V3" 1766 | -9/Storage | Lost 3 allies 1926 | -9/Storage | Build established: Commander-Mutant 2000 | -9/Storage | Identified exit to Recycling 2000 | -9/Storage | Discovered exit to Materials (range 18) 2317 | -9/Storage | Used back door to open Recycling access 2377 | -9/Storage | Lost 3 allies 2390 | -9/Storage | Entered Recycling 2390 | -9/Recycling | Accompanied by 2 allies 2391 | -9/Recycling | Found Scrap Engine 2930 | -9/Recycling | Build established: Construct 3460 | -9/Recycling | Core integrity fell below 50% 4351 | -9/Recycling | Discovered new exit (range 16) 6474 | -9/Recycling | Entered Factory 6474 | -7/Factory | Accompanied by 2 allies 6474 | -7/Factory | Evolved 4 slots: Propulsion x2, Utility x2 6656 | -7/Factory | Discovered new exit (range 25) 6702 | -7/Factory | Discovered new exit (range 37) 6988 | -7/Factory | Identified exit to Factory 7047 | -7/Factory | P-60 Hacker assimilated allied Administrator 4a 7245 | -7/Factory | Identified exit to Lower Caves 7269 | -7/Factory | Entered Lower Caves 8079 | -7/Lower Caves | Attacked by a delusional Derelict stockpiling Unaware 8543 | -7/Lower Caves | Build established: Commander-Construct 9020 | -7/Lower Caves | A Derelict revealed a hidden shortcut to a safe place 9391 | -7/Lower Caves | Learned location of 1 exit from Factory 9427 | -7/Lower Caves | Discovered new exit (range 5) 9432 | -7/Lower Caves | Identified exit to Lower Caves 9829 | -7/Lower Caves | Entered another Lower Caves area 9829 | -7/Lower Caves | Accompanied by 4 allies 10104 | -7/Lower Caves | Build established: Construct 10260 | -7/Lower Caves | Discovered exit to Factory (range 5) 10392 | -7/Lower Caves | Learned Factory interactive machine intel 10651 | -7/Lower Caves | Discovered new exit (range 14) 10870 | -7/Lower Caves | Identified exit to Zion 11108 | -7/Lower Caves | Learned Factory stockpile data 11571 | -7/Lower Caves | Entered Zion 11571 | -7/Zion | Accompanied by 3 allies 11645 | -7/Zion | Received a hallucinogenic algorithm 11785 | -7/Zion | Discovered new exit (range 13) 11907 | -7/Zion | Learned location of Warlord (-5) 12042 | -7/Zion | Learned Factory emergency access door positions 12185 | -7/Zion | Gained Derelict followers 12259 | -7/Zion | Acquired unknown access codes intercepted by a Zionite 12620 | -7/Zion | Gained Derelict followers 13109 | -7/Zion | Visited the Megawrench Repair Shop 13109 | -7/Zion | Megawrench repaired 3 parts 13320 | -7/Zion | Opened final containment barrier to the Deep Caves 13347 | -7/Zion | Discovered new exit (range 3) 13347 | -7/Zion | Saw the warning signs outside the Deep Caves entrance 13352 | -7/Zion | Identified exit to Deep Caves 13385 | -7/Zion | Entered Deep Caves 13385 | -7/Deep Caves | Accompanied by 11 allies 13759 | -7/Deep Caves | Z-Facility disabled 13782 | -7/Deep Caves | Attacked by Z-Imprinter 13792 | -7/Deep Caves | Allies destroyed Z-Imprinter 13828 | -7/Deep Caves | Lost 4 allies 14196 | -7/Deep Caves | Lost 6 allies 14420 | -7/Deep Caves | Found Prototype Protection 14442 | -7/Deep Caves | Found Prototype Protection 14443 | -7/Deep Caves | Identified Zio. Weapon Casing (x2) 14467 | -7/Deep Caves | Found Prototype Protection 14467 | -7/Deep Caves | Identified Zio. Heavy Carapace 15234 | -7/Deep Caves | Discovered new exit (range 6) 15244 | -7/Deep Caves | Identified exit to Proximity Caves 15529 | -7/Deep Caves | Found Zio. Heavy Carapace 15544 | -7/Deep Caves | Found Zio. Weapon Casing 16121 | -7/Deep Caves | Found Zio. Heavy Carapace 17610 | -7/Deep Caves | Entered Proximity Caves 17610 | -6/Proximity Caves | Accompanied by 1 ally 17612 | -6/Proximity Caves | Attracted the attention of an 0b10 checkpoint 17737 | -6/Proximity Caves | Spotter reported a threat 18076 | -6/Proximity Caves | Spotter reported a threat 18169 | -6/Proximity Caves | Spotter reported a threat 18264 | -6/Proximity Caves | Spotted B-75 Beast 18300 | -6/Proximity Caves | Destroyed B-75 Beast 18694 | -6/Proximity Caves | Learned Factory security intel 19065 | -6/Proximity Caves | Discovered exit to Factory (range 16) 19132 | -6/Proximity Caves | Entered Factory 19132 | -6/Factory | Evolved 2 slots: Propulsion x2 19133 | -6/Factory | Identified exit to Extension 19137 | -6/Factory | Loaded intel: 54 interactive machine locations 19482 | -6/Factory | Search patrols dispatched 19534 | -6/Factory | Entered Extension 19858 | -6/Extension | Rescued a captive Derelict 19864 | -6/Extension | Rescued a captive Derelict 19883 | -6/Extension | Build established: Commander-Construct 19965 | -6/Extension | Rescued a captive Derelict 19982 | -6/Extension | Rescued a captive Derelict 20021 | -6/Extension | Rescued a captive Derelict 20260 | -6/Extension | Rescued a captive Derelict 20262 | -6/Extension | Spotted B-75 Beast 20265 | -6/Extension | Spotted B-75 Beast 20324 | -6/Extension | Allies destroyed B-75 Beast 20335 | -6/Extension | Allies destroyed B-75 Beast 20336 | -6/Extension | Lost 8 allies 20358 | -6/Extension | Lost 6 parts (1p4u1w) 20390 | -6/Extension | Rescued A7 20486 | -6/Extension | Rescued a captive Derelict 20703 | -6/Extension | Build established: Construct 21044 | -6/Extension | Discovered new exit (range 10) 21044 | -6/Extension | Discovered new exit (range 6) 21079 | -6/Extension | Entered Cetus 21079 | -6/Cetus | Accompanied by 11 allies (A7) 21084 | -6/Cetus | Acquired a Cetus Manufacturing Module code from A7 21087 | -6/Cetus | Spotted Cetus Guard 21088 | -6/Cetus | Spotted Cetus Guard 21088 | -6/Cetus | Spotted Cetus Guard 21095 | -6/Cetus | Spotted Cetus Guard 21099 | -6/Cetus | Destroyed Cetus Guard 21109 | -6/Cetus | Allies destroyed Cetus Guard 21110 | -6/Cetus | Destroyed Cetus Guard 21112 | -6/Cetus | Destroyed Cetus Guard 21285 | -6/Cetus | Build established: Commander-Construct 21321 | -6/Cetus | Started Cetus Manufacturing Module 21346 | -6/Cetus | Manufactured an Enhanced Grunt 21371 | -6/Cetus | Manufactured an Enhanced Grunt 21396 | -6/Cetus | Manufactured an Enhanced Grunt 21421 | -6/Cetus | Manufactured an Enhanced Grunt 21446 | -6/Cetus | Manufactured an Enhanced Grunt 21476 | -6/Cetus | Discovered new exit (range 15) 21514 | -6/Cetus | Spotted Cetus Guard 21515 | -6/Cetus | Spotted Cetus Guard 21522 | -6/Cetus | Spotted Cetus Guard 21522 | -6/Cetus | Spotted Cetus Guard 21531 | -6/Cetus | Discovered new exit (range 16) 21533 | -6/Cetus | Destroyed Cetus Guard 21533 | -6/Cetus | Allies destroyed Cetus Guard 21534 | -6/Cetus | Allies destroyed Cetus Guard 21537 | -6/Cetus | Allies destroyed Cetus Guard 21550 | -6/Cetus | Met Revision 17 21562 | -6/Cetus | Lost 3 allies 21661 | -6/Cetus | Entered Archives 21661 | -6/Archives | Accompanied by 11 allies (A7) 21695 | -6/Archives | Discovered new exit (range 16) 21702 | -6/Archives | Discovered new exit (range 14) 21717 | -6/Archives | Lost 3 allies 21866 | -6/Archives | Discovered new exit (range 16) 23064 | -6/Archives | Entered Hub_04(d) 23064 | -6/Hub_04(d) | Accompanied by 7 allies 23173 | -6/Hub_04(d) | Network Hub disabled 23176 | -6/Hub_04(d) | Core integrity fell below 50% 23186 | -6/Hub_04(d) | Discovered new exit (range 2) 23186 | -6/Hub_04(d) | Spotted Lightning 23187 | -6/Hub_04(d) | Spotted Lightning 23190 | -6/Hub_04(d) | Spotted Lightning 23195 | -6/Hub_04(d) | Spotted Lightning 23196 | -6/Hub_04(d) | Spotted Lightning 23197 | -6/Hub_04(d) | System corruption reached 10% 23201 | -6/Hub_04(d) | Spotted Lightning 23236 | -6/Hub_04(d) | Network Hub disabled 23249 | -6/Hub_04(d) | System corruption reached 30% 23260 | -6/Hub_04(d) | Entered Factory 23260 | -5/Factory | Evolved 2 slots: Utility x1, Weapon x1 23310 | -5/Factory | Identified exit to Upper Caves 23310 | -5/Factory | Central database locked down 23670 | -5/Factory | Fabricated Surge Thruster (x2) 23931 | -5/Factory | Fabricated Surge Thruster (x2) 24064 | -5/Factory | Entered Upper Caves 24512 | -5/Upper Caves | Build established: Sprinter 24523 | -5/Upper Caves | Acquired the password to a Derelict Tinkerer's latest research 24529 | -5/Upper Caves | Found Prototype Special Weapon 24713 | -5/Upper Caves | Discovered new exit (range 8) 24720 | -5/Upper Caves | Identified exit to Upper Caves 24767 | -5/Upper Caves | Entered another Upper Caves area 24860 | -5/Upper Caves | Discovered new exit (range 6) 24865 | -5/Upper Caves | Identified exit to Factory 24928 | -5/Upper Caves | Build established: Tank 25087 | -5/Upper Caves | A Commander dispatched an escort 25091 | -5/Upper Caves | Learned 8 Research zone layouts 25091 | -5/Upper Caves | Learned Armory emergency access door positions 25091 | -5/Upper Caves | Learned Extension garrison access intel 25836 | -5/Upper Caves | Discovered new exit (range 7) 25841 | -5/Upper Caves | Identified exit to Warlord 25939 | -5/Upper Caves | Entered Warlord 26290 | -5/Warlord | Visited the Vortex Lab 26293 | -5/Warlord | Found Prototype Energy Gun 26295 | -5/Warlord | Found Prototype Energy Gun 26298 | -5/Warlord | Found Prototype Energy Cannon 26300 | -5/Warlord | Found Prototype Energy Cannon 26302 | -5/Warlord | Identified Vortex Driver (x2) 26308 | -5/Warlord | Identified Vortex Rail (x2) 26309 | -5/Warlord | Warlord's base attacked by MAIN.C 26447 | -5/Warlord | Met Warlord 26461 | -5/Warlord | Found Prototype Reactor 26466 | -5/Warlord | Found Prototype Device 26466 | -5/Warlord | Identified Exp. Cloaking Device 26475 | -5/Warlord | Found Prototype Device 26475 | -5/Warlord | Identified Thermal Barrier 26593 | -5/Warlord | Build established: Commander-Mutant 26613 | -5/Warlord | Identified Molecular Deconstructor 26640 | -5/Warlord | Found Prototype Energy Gun 26659 | -5/Warlord | Warlord forces counterattacked 26764 | -5/Warlord | Spotted B-75 Beast 26774 | -5/Warlord | Discovered new exit (range 15) 26781 | -5/Warlord | Identified exit to Proximity Caves 26797 | -5/Warlord | Lost 3 allies 26809 | -5/Warlord | Spotted Striker 26809 | -5/Warlord | Spotted B-75 Beast 26809 | -5/Warlord | Spotted B-86 Titan 26810 | -5/Warlord | Entered Proximity Caves 26810 | -4/Proximity Caves | Accompanied by 2 allies 27095 | -4/Proximity Caves | Attracted the attention of an 0b10 checkpoint 27302 | -4/Proximity Caves | Learned Research security intel 27324 | -4/Proximity Caves | Learned Research stockpile data 27395 | -4/Proximity Caves | Discovered exit to Factory (range 9) 27456 | -4/Proximity Caves | Entered Factory 27456 | -4/Factory | Evolved 2 slots: Weapon x2 27689 | -4/Factory | Identified Plasma Storm 27771 | -4/Factory | Discovered new exit (range 16) 27780 | -4/Factory | Identified exit to Research 28063 | -4/Factory | Build established: Tank 28115 | -4/Factory | Found Quantum Capacitor 28312 | -4/Factory | Discovered exit to Research (range 12) 28427 | -4/Factory | Sucked down chute 28427 | -4/Factory | Entered Waste 28455 | -4/Waste | Spotted C-40 Crusher 28502 | -4/Waste | Spotted C-40 Crusher 28511 | -4/Waste | Destroyed C-40 Crusher 28526 | -4/Waste | Spotted C-40 Crusher 28532 | -4/Waste | Destroyed C-40 Crusher 28537 | -4/Waste | Spotted C-40 Crusher 28542 | -4/Waste | Spotted C-40 Crusher 28547 | -4/Waste | Destroyed C-40 Crusher 28611 | -4/Waste | Destroyed C-40 Crusher 28621 | -4/Waste | Found Damper Plating 28640 | -4/Waste | Build established: Construct 28661 | -4/Waste | Spotted C-40 Crusher 28662 | -4/Waste | Destroyed C-40 Crusher 28681 | -4/Waste | Destroyed C-40 Crusher 28834 | -4/Waste | Discovered new exit (range 13) 28885 | -4/Waste | Warlord forces began an assault 29071 | -4/Waste | Identified exit to Factory 29091 | -4/Waste | Entered Factory 29091 | -4/Factory | Accompanied by 19 allies 29298 | -4/Factory | Lost 9 allies 29368 | -4/Factory | Lost 7 allies 29429 | -4/Factory | Destroyed 9 combat bots 29659 | -4/Factory | Identified exit to Upper Caves 29659 | -4/Factory | Identified exit to Armory 29810 | -4/Factory | Entered Upper Caves 30341 | -4/Upper Caves | Learned 8 Research zone layouts 30359 | -4/Upper Caves | Discovered new exit (range 7) 30363 | -4/Upper Caves | Identified exit to Upper Caves 30456 | -4/Upper Caves | Encountered a Warlord checkpoint 30623 | -4/Upper Caves | Entered another Upper Caves area 30662 | -4/Upper Caves | Encountered a Warlord checkpoint 30687 | -4/Upper Caves | Discovered exit to Research (range 6) 30992 | -4/Upper Caves | Discovered new exit (range 6) 30995 | -4/Upper Caves | Identified exit to Zhirov 31081 | -4/Upper Caves | Entered Zhirov 31081 | -4/Zhirov | Discovered new exit (range 3) 31092 | -4/Zhirov | Met Zhirov 31102 | -4/Zhirov | Learned location of Quarantine (-2) 31102 | -4/Zhirov | Learned location of Testing (-3) 31113 | -4/Zhirov | Zhirov requested help retrieving the SGEMP Prototype 31123 | -4/Zhirov | Found Alien Artifact 31123 | -4/Zhirov | Identified Integrated Dissipator 31123 | -4/Zhirov | Installed Integrated Dissipator, increased core heat dissipation (+20) 31135 | -4/Zhirov | Found Alien Artifact 31222 | -4/Zhirov | Identified exit to Proximity Caves 31300 | -4/Zhirov | Entered Proximity Caves 31562 | -3/Proximity Caves | Spotter reported a threat 31615 | -3/Proximity Caves | Spotter reported a threat 31881 | -3/Proximity Caves | Discovered exit to Research (range 11) 31923 | -3/Proximity Caves | Entered Research 31923 | -3/Research | Evolved 2 slots: Power x1, Utility x1 31924 | -3/Research | Identified exit to Research 31924 | -3/Research | Identified exit to Testing 31924 | -3/Research | Identified Vortex Chain Reactor 32055 | -3/Research | Spotted B-86 Titan 32123 | -3/Research | Revision forces began assault on 0b10 32183 | -3/Research | Lost 4 allies 32309 | -3/Research | Entered Testing 32392 | -3/Testing | Found Prototype Slashing Weapon 32393 | -3/Testing | Identified Nanosword 32394 | -3/Testing | Found Nanosword 32396 | -3/Testing | Found Nanosword 32398 | -3/Testing | Found Nanosword 32400 | -3/Testing | Found Nanosword 32445 | -3/Testing | Found Prototype Energy Cannon 32445 | -3/Testing | Identified Hpw. Disruptor Cannon 32593 | -3/Testing | Search patrols dispatched 32639 | -3/Testing | System corruption reached 10% 32723 | -3/Testing | Spotted PX-OREMZORAAQ 32848 | -3/Testing | Search patrols dispatched 32999 | -3/Testing | Found Fusion Bomb Launcher 33011 | -3/Testing | Found Prototype Energy Gun 33070 | -3/Testing | Identified Warp Gun 33131 | -3/Testing | Build established: Mutant 33288 | -3/Testing | Found Prototype Protection 33291 | -3/Testing | Found Prototype Protection 33292 | -3/Testing | Identified Lgt. Regenerative Plating 33295 | -3/Testing | Found Prototype Protection 33295 | -3/Testing | Identified Hvy. Regenerative Plating 33297 | -3/Testing | Identified SHELL Armor 33421 | -3/Testing | Destroyed 7 combat bots 33583 | -3/Testing | Entered Research 33583 | -2/Research | Warlord forces began assault on 0b10 33583 | -2/Research | Evolved 2 slots: Propulsion x1, Utility x1 33693 | -2/Research | Research machine network offline 33843 | -2/Research | Build established: Assassin 33927 | -2/Research | Borebot progress halted 34170 | -2/Research | Spotted Striker 34237 | -2/Research | Lost 3 allies 34342 | -2/Research | Borebot progress halted 34375 | -2/Research | Found Prototype Device 34376 | -2/Research | Identified Vortex Field Projector 34499 | -2/Research | Warlord destroyed during the assault 34506 | -2/Research | Build established: Skirmisher 35018 | -2/Research | Lost 3 allies 35179 | -2/Research | Found Quantum Capacitor 35539 | -2/Research | Lost 7 allies 36170 | -2/Research | Spotted Executioner 36183 | -2/Research | Destroyed Executioner 36192 | -2/Research | Destroyed Striker 36201 | -2/Research | Spotted Striker 36203 | -2/Research | Destroyed Striker 36223 | -2/Research | Lost 10 allies 36249 | -2/Research | Destroyed 9 combat bots 36252 | -2/Research | Spotted Striker 36330 | -2/Research | Spotted Striker 36334 | -2/Research | Spotted Striker 36350 | -2/Research | Destroyed Striker 36359 | -2/Research | Destroyed Striker 36366 | -2/Research | Spotted Executioner 36370 | -2/Research | Spotted Executioner 36370 | -2/Research | Spotted NA-KQ2(L) 36375 | -2/Research | Destroyed Executioner 36408 | -2/Research | Destroyed 7 combat bots 36467 | -2/Research | Build established: Construct 36471 | -2/Research | Found Prototype Processor 36472 | -2/Research | Identified Exp. Core Analyzer 36476 | -2/Research | Found Prototype Device 36476 | -2/Research | Identified Adv. Kinecellerator 36493 | -2/Research | Spotted Striker 36503 | -2/Research | Found Exp. Core Analyzer 36557 | -2/Research | Found Prototype Processor 36557 | -2/Research | Identified Exp. Targeting Computer 36602 | -2/Research | Spotted Striker 36605 | -2/Research | Destroyed Striker 36618 | -2/Research | Destroyed Executioner 36621 | -2/Research | Spotted Executioner 36624 | -2/Research | Spotted Striker 36627 | -2/Research | Destroyed Executioner 36636 | -2/Research | Destroyed Striker 36644 | -2/Research | Spotted Executioner 36653 | -2/Research | Destroyed Executioner 36674 | -2/Research | Destroyed 9 combat bots 36682 | -2/Research | Spotted Striker 36682 | -2/Research | Spotted Executioner 36684 | -2/Research | Destroyed Executioner 36701 | -2/Research | Destroyed Striker 36762 | -2/Research | Destroyed 9 combat bots 36765 | -2/Research | Lost 8 parts (1p2u5w) 36793 | -2/Research | Core integrity fell below 50% 36845 | -2/Research | Spotted Executioner 36864 | -2/Research | Spotted Executioner 36865 | -2/Research | Spotted Executioner 36886 | -2/Research | Lost 4 parts (1p1n2w) 36887 | -2/Research | Core integrity fell below 20% 36887 | -2/Research | Identified Transdimensional Reconstructor 36887 | -2/Research | Warped through subspace 36891 | -2/Research | Spotted Striker 36913 | -2/Research | Spotted Executioner 36916 | -2/Research | Spotted Executioner 36919 | -2/Research | Destroyed by H-88 Terminator with KE Penetrator Last Messages --------------- destabilization (-7). 36912_ Penetrated by Slug. 36912_ Arm. Scrap Engine destroyed. 36912_ Scrap Engine core remains intact and functional. 36915_ C-30 ARC bursts open, deploying its payload. 36915_ H-88 Terminator unfolds itself. 36915_ Penetrated by Slug. 36915_ Slug penetrates Wall. 36916_ Slug penetrates Ion Accelerator. 36916_ Penetrated by Slug. 36916_ Slug penetrates Ion Accelerator. 36916_ Penetrated by Slug. 36917_ C-30 ARC bursts open, deploying its payload. 36917_ H-88 Terminator unfolds itself. 36917_ Penetrated by Slug. 36918_ Slug penetrates Wall. 36919_ Penetrated by Slug. Map ----- +----------------------------------------------------+ | ##### ###########?#### "T [ %=!!%% # | | ################################# # %= *% " | | #############################??## " ! | | ############################?##?## = | | ###########################??##??# % | | ############################?????# ##"" = | | ##########################??#???######### = | | ##########################???????????# # ! %%%!# | | #########################????????????## =!= ! | | #########################????????????# # %%%!! | | ########################?????????????# #* =%[=[ | | ########################?#####??????## =%%!*# | | ################?##### ?? #??????# # ## !%*% | | ######################??? #??????# # %%%"# | | #####################???? #??????# # ==% ! | | ####################????" ########## #[ =%*%[ | | ##################??????" # " *%[%=% | | #######?########???????"" # # |!|[% | | ?#############????????""" # # [=! =!= | | ???????#?????????????? # # % =*!%%%| | | ?????????????????????# % + # % =#%|% | | ?????????????????????#""" # # ! =* # | | ?????????????????????#""" + # """ % * | | ?????????????????????#""" ; #! """ ! = | | ?????????????????????#""" # % # """=% % = | | ?????????????????????#"""@ ### !!==% /% | | ?????????????????##### ; EE ![%%!!! **[ | | ?????????????????# ; K h%h [%!! !%% | | ?????????????????## ## hh %!% % | | ?????????????????????###;;; ! % % | | ?????????????????????# ; # #%% ! # # | | ?????????????????????# ; ] # = | | ?????????????????????## % % | | ???????????????????# ; h ! | | ???????????????????#####; % = | | ???????????????????????### ### ! | | ????????????????????????## !# ! #% % % | | ??????????????????????### %#[# # % % [ | | ??????????????????????? # % | | ??????????????????????### ! # | | ????????????????????????## # * | | ?????????????????????????#* ! " # ## # "##"" | | ?????????????????#########[=/% " ## # !" ## | | ?????????????????? = *! =!*% ! # =%*" | | ???????????????######!####=!! !!! * == ### | | ?????????????? #=!% % %[ | | ?????????????? * ! *=# | | ?????????????? [ % %=%= | | ?????????????? !! """ [#*! / % | | ???????????????!! ""![%!= % # | +----------------------------------------------------+ Best States ------------- Heat Dissipation 104 Coolant Potential 120 Energy Generation 55 Energy Capacity 953 Matter Stores 300 Matter Capacity 300 Sight Range 23 Robot Scan Range 16 Terrain Scan Range 20 Terrain Scan Density 210 Jamming Range 16 Cloak Strength 4 Additional Mass Support 16 Base Temperature (-) 150 Corruption Containment 8 Armor Coverage 900 Resistance: KI 30 Resistance: TH 50 Core Shielding 20 Weapon Shielding 100 Phase Shifting 5 Evasion (%) 69 Targeting Accuracy 12 Target Analysis 8 Core Analysis 8 Recoil Reduction 6 Particle Charging 25 Kinecelleration 50 Offensive Hacking 22 Defensive Hacking 14 Authchip Count 1 Item Schematics ----------------- Cargo Storage Unit | -10/Materials | Hacked Terrain Scan Processor | -9/Materials | Scanalyzed Lrg. Storage Unit | -9/Recycling | Hacked Plasma Cutter | -9/Recycling | Hacked Riot Gun | -7/Zion | Free Flamer | -7/Zion | Free Enh. Flamer | -7/Zion | Free Tactical Coordination Suite | -7/Zion | Free Surge Thruster | -5/Factory | Hacked Adv. Variable Charge Gun | -5/Factory | Scanalyzed Assault Drone Bay | -4/Zhirov | Free Exp. Heat Sink | -4/Zhirov | Free Exp. Optical Array | -4/Zhirov | Free Imp. Arc Thrower | -4/Zhirov | Free Robot Schematics ------------------ None Fabricated ------------ Surge Thruster | x2 | -5/Factory Surge Thruster | x2 | -5/Factory Alien Tech Used ----------------- Integrated Dissipator Transdimensional Reconstructor Achievements -------------- None Challenges ------------ None Game ------ Seed BattleMakeshiftFrame Manual? 0 Play Time 09:20:54 Cumulative 319.7 hours Start 2024.05.05 @ 12:15:27 End 2024.05.07 @ 08:15:19 Sessions 3 Manual Loads 0 Difficulty Rogue Special Mode None Game No. 84 Rogue 84 Adventurer 0 Explorer 0 Win Type - Total 17 Types 8/3/3/1/1/0/1/0/0 Lore% 58 Gallery% 80 Achievement% 71 Wizard Run 0 Options --------- Layout 1 ASCII 0 Keyboard 0 Movement Numpad Keybinds 0 Fullscreen 1 Font 24/Smallcaps Map View 50x35 Zoom Use 15% Tactical HUD 1 Map Filters NONE Filters NONE Steam 1 RUN: b1cb73ca-d3a7-4eaa-b972-cd84fcc6f5df